bitfinex-derivatives/quotes_SOLF0:USTF0_20260217
["timestamp","ask_amount","ask_price","bid_price","bid_amount"]
[1771339004548,4.58533618,85.049,84.965,7.40718487]
[1771339005347,4.58533618,85.049,84.996,10.5944]
[1771339005647,4.58532293,85.068,84.985,6.95514682]
[1771339005853,10.5865,85.061,85.017,10.5918]
[1771339006351,21.1629,85.102,85.004,6.95514682]
[1771339006352,4.57626906,85.089,85.004,6.95514682]
[1771339006656,4.57626906,85.089,84.976,21.194]
[1771339006657,4.57624318,85.109,85.022,6.95514682]
[1771339006853,74.06,85.127,85.022,6.95514682]
[1771339006854,8.69955685,85.126,85.022,6.95514682]
[1771339007049,10.5795,85.117,85.041,6.95514682]
[1771339007351,10.5795,85.117,85.04,5.93340141]
[1771339007352,4.57624318,85.099,85.021,6.95514682]
[1771339007552,5.93340141,85.08,85.021,6.95514682]
[1771339007946,5.93340141,85.06,85.0,6.95514682]
[1771339008152,10.50961804,85.06,85.0,6.95514682]
[1771339008353,4.57621663,85.059,85.001,10.5938]
[1771339008655,5.93340141,85.08,85.002,6.95514682]
[1771339008851,10.5852,85.071,85.014,10.5922]
[1771339009445,16.51750141,85.08,85.022,17.54634682]
[1771339009645,16.51750141,85.08,85.001,6.95514682]
[1771339009646,4.58789011,85.079,85.001,6.95514682]
[1771339009851,10.52129152,85.06,85.001,6.95514682]
[1771339010246,10.5878,85.051,85.001,6.95514682]
[1771339010447,10.52129152,85.06,85.001,6.95514682]
[1771339011357,10.52129152,85.06,84.98,5.93340141]
[1771339011358,5.93340141,85.08,85.012,6.95514682]
[1771339011552,4.42214127,85.079,85.012,6.95514682]
[1771339011860,4.42214127,85.059,84.986,6.95514682]
[1771339012053,5.93340141,85.04,84.986,6.95514682]
[1771339012360,4.42903679,85.039,84.961,7.55594872]
[1771339012562,10.5907,85.027,84.977,10.5968]
[1771339012953,10.5907,85.027,84.961,7.55594872]
[1771339013258,10.5907,85.027,84.976,10.597]
[1771339013458,10.5907,85.027,84.961,7.55594872]
[1771339014762,10.5907,85.027,84.967,10.5981]
[1771339015356,10.5907,85.027,84.961,7.55594872]
[1771339015357,10.5907,85.027,84.977,10.5968]
[1771339015658,10.5907,85.027,84.961,7.55594872]
[1771339016164,4.42903679,85.039,84.961,7.55594872]
[1771339016362,8.7082268,85.053,84.961,7.55594872]
[1771339016560,4.0807201,85.059,84.988,7.55594872]
[1771339017157,10.5884,85.046,84.991,7.55594872]
[1771339017360,4.0807201,85.059,84.991,7.55594872]
[1771339017862,4.0807201,85.059,84.966,7.55594872]
[1771339017863,5.93340141,85.04,84.966,7.55594872]
[1771339018057,10.02685328,85.04,84.966,7.55594872]
[1771339018258,10.5904,85.03,84.969,7.55594872]
[1771339018660,10.02685328,85.04,84.969,7.55594872]
[1771339019066,10.02685328,85.04,84.977,7.55594872]
[1771339020057,10.02685328,85.04,84.979,10.5966]
[1771339020764,3.96087075,85.059,84.98,7.55594872]
[1771339020971,5.93340141,85.08,85.001,7.55594872]
[1771339021170,3.96087075,85.079,85.001,7.55594872]
[1771339021368,3.96087075,85.077,85.001,7.55594872]
[1771339021558,10.5874,85.054,85.001,7.55594872]
[1771339021763,5.93340141,85.06,84.981,7.55594872]
[1771339022165,10.5881,85.048,84.981,7.55594872]
[1771339022368,5.93340141,85.06,84.981,7.55594872]
[1771339022863,5.93340141,85.06,84.98,5.93340141]
[1771339022864,5.93340141,85.06,85.01,10.5928]
[1771339023467,4.00136099,85.079,85.018,7.55594872]
[1771339024072,4.00136099,85.079,85.0,5.93340141]
[1771339024272,4.00131295,85.077,85.0,13.48935013]
[1771339024570,4.00131295,85.077,85.001,7.55594872]
[1771339025073,4.3215667,85.059,84.981,7.55594872]
[1771339025270,4.3215667,85.057,84.981,7.55594872]
[1771339025467,21.1682,85.08,84.981,7.55594872]
[1771339025468,4.32145447,85.039,84.981,7.55594872]
[1771339025674,4.32145447,85.039,84.94,21.203]
[1771339025675,10.5928,85.01,84.961,10.5988]
[1771339026168,4.32145447,85.019,84.938,7.55594872]
[1771339026570,5.93340141,85.02,84.938,7.55594872]
[1771339026571,4.29034007,85.017,84.938,7.55594872]
[1771339027171,4.29034007,85.017,84.941,7.55594872]
[1771339027365,5.93340141,85.0,84.941,7.55594872]
[1771339027765,5.93340141,85.0,84.948,10.6004]
[1771339028069,5.93340141,85.0,84.941,7.55594872]
[1771339028070,4.29020111,84.999,84.941,7.55594872]
[1771339028372,4.29020111,84.999,84.921,7.55594872]
[1771339028977,10.5945,84.997,84.921,7.55594872]
[1771339029479,5.93340141,85.0,84.915,93.46]
[1771339029480,10.5934,85.006,84.942,7.55594872]
[1771339029963,10.5921,85.016,84.961,18.15474872]
[1771339030167,4.30252974,85.019,84.94,13.48935013]
[1771339030371,5.93340141,85.02,84.941,7.55594872]
[1771339030573,10.5919,85.017,84.966,7.55594872]
[1771339030768,4.30524181,85.035,84.966,7.55594872]
[1771339030967,4.30524181,85.033,84.966,7.55594872]
[1771339031271,4.30524181,85.031,84.966,7.55594872]
[1771339031573,4.30524181,85.031,84.94,5.93340141]
[1771339031574,4.30513382,85.019,84.943,7.55594872]
[1771339032172,10.593,85.008,84.958,10.5992]
[1771339032377,4.30513382,85.019,84.943,7.55594872]
[1771339032774,10.5952,84.991,84.944,18.15694872]
[1771339033274,10.5942,84.999,84.951,18.15604872]
[1771339034976,4.25854485,85.06,84.961,7.07529376]
[1771339035181,4.25854485,85.06,84.95,5.93340141]
[1771339035182,4.25854485,85.06,84.981,7.07529376]
[1771339036080,4.24852968,85.049,84.981,7.07529376]
[1771339036481,4.24852968,85.049,84.962,7.07529376]
[1771339037372,4.24852968,85.049,84.977,10.5968]
[1771339037572,4.27629126,85.068,84.981,7.07529376]
[1771339037779,10.5897,85.035,84.982,10.5962]
[1771339037976,10.5897,85.035,84.982,7.07529376]
[1771339039389,4.26881854,85.047,84.982,7.07529376]
[1771339040179,4.26881854,85.047,84.96,5.93340141]
[1771339040180,4.25930969,85.029,84.963,7.07529376]
[1771339040686,10.5924,85.013,84.964,10.5985]
[1771339040878,4.25930969,85.029,84.965,7.07529376]
[1771339041074,5.93340141,85.01,84.942,7.07529376]
[1771339041279,10.5916,85.02,84.963,7.07529376]
[1771339041481,4.24884374,85.039,84.963,7.07529376]
[1771339041878,10.5903,85.03,84.963,7.07529376]
[1771339042084,12.96492833,85.058,84.981,7.07529376]
[1771339042386,12.96492833,85.058,84.98,5.93340141]
[1771339042387,4.23955068,85.058,84.993,7.07529376]
[1771339042887,16.52000141,85.06,85.004,10.5935]
[1771339043090,10.5866,85.06,85.005,7.07529376]
[1771339043289,4.22176661,85.078,84.984,7.07529376]
[1771339043584,4.22176661,85.059,84.99,7.07529376]
[1771339044085,10.5887,85.043,84.993,10.5949]
[1771339044284,4.22176661,85.059,84.971,7.07529376]
[1771339044586,4.19168154,85.039,84.971,7.07529376]
[1771339045089,4.19168154,85.039,84.972,10.5975]
[1771339046084,4.19168154,85.039,84.98,10.5965]
[1771339046289,5.93340141,85.04,84.981,7.07529376]
[1771339046588,4.13235032,85.039,84.962,7.07529376]
[1771339046980,5.93340141,85.06,84.987,7.07529376]
[1771339047181,21.1671,85.085,84.987,7.07529376]
[1771339047182,10.05734365,85.08,84.987,7.07529376]
[1771339047389,8.72534559,85.079,85.0,5.93340141]
[1771339047585,10.05734365,85.08,85.001,7.07529376]
[1771339047586,4.12394224,85.08,85.001,7.07529376]
[1771339047981,10.5863,85.062,85.011,17.66789376]
[1771339048197,4.12394224,85.08,85.0,5.93340141]
[1771339048484,10.5893,85.039,84.992,10.595]
[1771339048687,4.10161909,85.067,84.993,7.07529376]
[1771339049281,4.10161909,85.067,84.994,10.5947]
[1771339049476,5.93340141,85.05,84.993,7.07529376]
[1771339049782,4.09329331,85.049,84.98,5.93340141]
[1771339049985,4.09329331,85.049,84.974,7.07529376]
[1771339050588,10.5891,85.04,84.985,10.5959]
[1771339050787,4.09329331,85.049,84.974,7.07529376]
[1771339050988,4.1045617,85.029,84.961,7.07529376]
[1771339051288,74.06,85.055,84.96,5.93340141]
[1771339051289,5.93340141,85.05,84.972,7.07529376]
[1771339051588,5.93340141,85.05,84.95,5.93340141]
[1771339051589,5.93340141,85.07,84.981,7.07529376]
[1771339051780,5.93340141,85.05,84.981,7.07529376]
[1771339052292,5.93340141,85.05,84.93,21.91071203]
[1771339052293,10.5921,85.016,84.961,7.07529376]
[1771339052794,10.5929,85.009,84.961,17.67409376]
[1771339053482,4.08797143,85.029,84.961,7.07529376]
[1771339053684,4.08022234,85.027,84.961,7.07529376]
[1771339054678,10.5929,85.01,84.964,7.07529376]
[1771339054879,8.72555437,85.045,84.964,7.07529376]
[1771339055086,4.13092529,85.068,84.981,7.07529376]
[1771339055293,4.13092529,85.068,85.0,5.93340141]
[1771339055488,4.13092529,85.068,85.001,7.07529376]
[1771339055891,10.5865,85.061,85.004,7.07529376]
[1771339056194,21.1644,85.096,85.004,7.07529376]
[1771339056195,4.12312065,85.089,85.004,7.07529376]
[1771339056497,4.12312065,85.087,85.004,7.07529376]
[1771339056794,10.5873,85.055,85.008,10.593]
[1771339057785,10.5881,85.048,85.004,7.07529376]
[1771339057991,4.12677968,85.078,85.004,7.07529376]
[1771339058189,4.12677968,85.069,85.004,7.07529376]
[1771339058394,4.12677968,85.067,85.004,7.07529376]
[1771339058593,4.11438165,85.065,84.981,7.07529376]
[1771339058789,5.93340141,85.07,84.985,7.07529376]
[1771339058790,4.11438165,85.063,84.985,7.07529376]
[1771339058995,4.11438165,85.063,84.926,29.16949726]
[1771339058996,4.11438165,85.049,84.965,7.07529376]
[1771339059195,4.11438165,85.047,84.965,7.07529376]
[1771339059400,4.11438165,85.029,84.965,7.07529376]
[1771339059694,4.10687786,85.027,84.941,7.07529376]
[1771339059886,238.7629,85.049,84.941,7.07529376]
[1771339059887,4.10687786,85.019,84.941,7.07529376]
[1771339060087,4.10687786,85.017,84.941,7.07529376]
[1771339060791,10.595,84.992,84.943,7.07529376]
[1771339060992,4.10687786,85.017,84.943,7.07529376]
[1771339061594,3.95161991,85.015,84.943,7.07529376]
[1771339061994,5.93489337,85.0,84.943,7.07529376]
[1771339062794,5.93489337,85.0,84.93,5.93489337]
[1771339062795,3.95161991,85.013,84.945,7.07529376]
[1771339063389,3.94458615,84.999,84.93,5.93489337]
[1771339063595,3.94458615,84.999,84.921,7.07529376]
[1771339064697,3.94458615,84.999,84.923,7.40864033]
[1771339065389,3.94458615,84.999,84.926,7.40864033]
[1771339065595,4.17476259,85.038,84.961,7.40864033]
[1771339066189,10.5927,85.011,84.961,7.40864033]
[1771339066389,4.17476259,85.038,84.961,7.40864033]
[1771339066598,4.17505241,85.019,84.941,7.40864033]
[1771339066897,5.93489337,85.02,84.941,7.40864033]
[1771339066898,4.17505241,85.017,84.941,7.40864033]
[1771339067491,10.5956,84.988,84.941,7.40864033]
[1771339067896,4.17505241,85.017,84.941,7.40864033]
[1771339068096,5.93489337,85.0,84.941,7.40864033]
[1771339068801,10.09499871,85.0,84.941,7.40864033]
[1771339069302,10.5954,84.989,84.941,7.40864033]
[1771339069498,10.09499871,85.0,84.941,7.40864033]
[1771339070091,10.5954,84.989,84.941,7.40864033]
[1771339071797,4.16079056,84.999,84.923,7.40864033]
[1771339072005,5.93489337,84.98,84.911,6.90062948]
[1771339073793,10.5986,84.963,84.911,6.90062948]
[1771339074309,4.11766645,84.996,84.911,6.90062948]
[1771339074502,10.5977,84.971,84.926,6.90062948]
[1771339074803,4.11753398,85.018,84.926,6.90062948]
[1771339075002,21.1814,85.027,84.926,6.90062948]
[1771339075003,7.3453321,84.999,84.926,6.90062948]
[1771339075602,7.3453321,84.999,84.936,6.90062948]
[1771339076701,10.5936,85.004,84.957,6.90062948]
[1771339077206,7.3453321,85.023,84.957,6.90062948]
[1771339077995,7.3453321,85.023,84.959,6.90062948]
[1771339078901,10.5941,85.0,84.959,6.90062948]
[1771339079309,7.3453321,85.023,84.959,6.90062948]
[1771339079510,10.5914,85.021,84.964,10.5985]
[1771339079710,7.3453321,85.023,84.964,6.90062948]
[1771339080807,7.3453321,85.019,84.93,5.93489337]
[1771339081013,5.93489337,85.02,84.939,6.90062948]
[1771339081014,10.5947,84.995,84.939,6.90062948]
[1771339081207,7.3453321,84.999,84.89,21.2154]
[1771339081208,7.3453321,84.999,84.919,6.90062948]
[1771339081708,7.3453321,84.999,84.9,97.21489337]
[1771339081709,7.3453321,85.049,84.928,6.90062948]
[1771339082009,7.3453321,85.029,84.961,6.90062948]
[1771339082207,7.3453321,84.989,84.914,6.90062948]
[1771339083208,7.3453321,84.989,84.91,5.93489337]
[1771339083209,7.3453321,84.989,84.922,6.90062948]
[1771339083409,7.3453321,85.009,84.922,6.90062948]
[1771339083712,21.1814,85.027,84.922,6.90062948]
[1771339083713,7.3453321,84.989,84.922,6.90062948]
[1771339084413,7.3453321,84.989,84.925,6.90062948]
[1771339084901,7.3453321,84.989,84.906,6.90062948]
[1771339085510,7.3453321,84.989,84.915,6.90062948]
[1771339085714,5.93489337,84.99,84.921,6.90062948]
[1771339085906,7.3453321,85.007,84.921,6.90062948]
[1771339086106,10.5961,84.984,84.927,6.90062948]
[1771339086305,7.3453321,85.007,84.927,6.90062948]
[1771339086615,7.3453321,84.971,84.907,10.6056]
[1771339087109,7.3453321,84.971,84.908,6.90062948]
[1771339087308,10.5995,84.956,84.908,6.90062948]
[1771339087908,7.3453321,84.969,84.908,6.90062948]
[1771339088409,10.6008,84.946,84.892,6.90062948]
[1771339088813,7.3453321,84.969,84.892,6.90062948]
[1771339089210,7.3453321,84.949,84.892,6.90062948]
[1771339090109,7.3453321,84.969,84.892,6.90062948]
[1771339091510,10.6017,84.939,84.892,6.90062948]
[1771339092016,7.3453321,84.969,84.892,6.90062948]
[1771339092202,7.3453321,84.969,84.883,91.14]
[1771339092203,10.5995,84.957,84.895,6.90062948]
[1771339092408,10.5995,84.957,84.872,2.04904157]
[1771339092409,7.3453321,84.987,84.901,6.90062948]
[1771339093309,10.5976,84.972,84.903,6.90062948]
[1771339094212,7.3453321,84.987,84.903,6.90062948]
[1771339095212,7.3453321,84.987,84.907,6.80033313]
[1771339095213,10.5973,84.974,84.907,6.80033313]
[1771339095513,7.3453321,84.987,84.907,6.80033313]
[1771339096109,7.3453321,84.987,84.911,6.80033313]
[1771339096110,10.5968,84.978,84.911,6.80033313]
[1771339096509,6.70697009,84.959,84.893,6.80033313]
[1771339096816,10.602,84.936,84.873,6.80033313]
[1771339097014,6.70697009,84.959,84.873,6.80033313]
[1771339097316,10.6014,84.942,84.882,10.6087]
[1771339097519,10.6014,84.942,84.883,6.80033313]
[1771339097721,5.93489337,84.96,84.891,6.80033313]
[1771339098018,10.6001,84.952,84.892,6.80033313]
[1771339098914,5.93489337,84.96,84.892,6.80033313]
[1771339098915,10.6015,84.941,84.892,6.80033313]
[1771339099216,6.70697009,84.959,84.892,6.80033313]
[1771339099406,6.70697009,84.959,84.894,6.80033313]
[1771339099607,10.5993,84.958,84.894,6.80033313]
[1771339100014,10.6003,84.95,84.894,6.80033313]
[1771339100207,17.30727009,84.95,84.894,6.80033313]
[1771339101510,17.30727009,84.95,84.901,10.6063]
[1771339101718,5.93489337,84.96,84.894,6.80033313]
[1771339101719,6.70697009,84.959,84.894,6.80033313]
[1771339101910,6.70697009,84.939,84.873,6.80033313]
[1771339102107,10.6052,84.911,84.856,6.80033313]
[1771339102319,6.70697009,84.919,84.837,6.80033313]
[1771339102715,10.6084,84.885,84.837,6.80033313]
[1771339103719,6.70697009,84.879,84.81,5.93489337]
[1771339103923,6.70697009,84.879,84.791,6.80033313]
[1771339104318,12.64186346,84.88,84.801,6.80033313]
[1771339104511,6.70697009,84.879,84.801,6.80033313]
[1771339104716,74.08,84.895,84.782,6.80033313]
[1771339104717,10.6144,84.837,84.782,6.80033313]
[1771339104914,5.93489337,84.84,84.762,6.80033313]
[1771339104915,6.70697009,84.836,84.762,6.80033313]
[1771339105317,5.93489337,84.82,84.762,6.80033313]
[1771339105815,10.617,84.816,84.762,6.80033313]
[1771339106324,5.93489337,84.85,84.719,6.80033313]
[1771339106325,6.70697009,84.799,84.719,6.80033313]
[1771339106626,6.70697009,84.799,84.659,165.4599]
[1771339106627,6.70697009,84.779,84.677,6.80033313]
[1771339106818,6.70697009,84.759,84.702,2.0530489]
[1771339107122,6.70697009,84.78,84.677,6.80033313]
[1771339107323,5.93489337,84.77,84.691,6.80033313]
[1771339107521,5.93489337,84.77,84.693,6.80033313]
[1771339107815,12.64186346,84.78,84.693,6.80033313]
[1771339108012,6.70697009,84.776,84.695,10.6321]
[1771339108216,6.70697009,84.776,84.693,6.80033313]
[1771339108420,165.0918,84.849,84.721,6.80033313]
[1771339108421,6.70697009,84.794,84.721,6.80033313]
[1771339108612,6.70697009,84.794,84.702,6.80033313]
[1771339108813,6.70697009,84.779,84.702,6.80033313]
[1771339109121,6.70697009,84.757,84.69,2.05333357]
[1771339109321,6.70697009,84.779,84.691,6.80033313]
[1771339109824,10.6229,84.77,84.691,6.80033313]
[1771339110020,6.70697009,84.779,84.691,6.80033313]
[1771339110324,5.93489337,84.76,84.691,6.80033313]
[1771339110626,10.6227,84.771,84.701,6.80033313]
[1771339110824,6.70697009,84.779,84.701,6.80033313]
[1771339111118,6.70697009,84.779,84.69,2.05333357]
[1771339111319,6.70697009,84.779,84.681,6.80033313]
[1771339111320,6.70697009,84.758,84.681,6.80033313]
[1771339111521,6.70697009,84.739,84.662,21.3684175]
[1771339111817,6.70697009,84.739,84.663,6.80033313]
[1771339112020,10.6288,84.723,84.663,6.80033313]
[1771339112318,6.70697009,84.739,84.663,6.80033313]
[1771339112712,5.93489337,84.72,84.663,6.80033313]
[1771339113516,6.70697009,84.739,84.663,6.80033313]
[1771339113920,6.70697009,84.737,84.662,19.31453253]
[1771339114123,5.93489337,84.72,84.662,19.31453253]
[1771339114428,5.93489337,84.72,84.639,10.6392]
[1771339114429,5.93489337,84.7,84.618,6.80033313]
[1771339114724,6.70697009,84.699,84.618,6.80033313]
[1771339114915,6.70697009,84.695,84.618,6.80033313]
[1771339115521,6.70697009,84.695,84.551,165.6718]
[1771339115522,6.70697009,84.679,84.6,5.93489337]
[1771339115724,6.70697009,84.679,84.596,6.80033313]
[1771339115725,6.70697009,84.669,84.596,6.80033313]
[1771339115921,6.70697009,84.669,84.601,6.80033313]
[1771339116127,5.93489337,84.69,84.601,6.80033313]
[1771339116316,6.70697009,84.693,84.621,6.80033313]
[1771339116518,10.6345,84.677,84.601,6.80033313]
[1771339116714,6.70697009,84.689,84.601,6.80033313]
[1771339116919,12.64186346,84.71,84.621,6.80033313]
[1771339117425,7.36556565,84.709,84.628,7.32377764]
[1771339118228,74.08,84.727,84.607,6.76651131]
[1771339118229,6.92475343,84.669,84.607,6.76651131]
[1771339118426,6.92475343,84.669,84.59,5.93489337]
[1771339118724,6.92475343,84.669,84.591,6.76651131]
[1771339118931,5.93489337,84.64,84.569,6.76651131]
[1771339119126,6.92475343,84.649,84.571,6.76651131]
[1771339119431,6.92475343,84.649,84.562,2.05631223]
[1771339119432,12.8596468,84.67,84.581,6.76651131]
[1771339119631,6.92475343,84.67,84.601,10.6439]
[1771339119927,6.92475343,84.67,84.602,6.76651131]
[1771339120331,6.92475343,84.67,84.601,6.76651131]
[1771339120726,5.9820613,84.68,84.6,5.9820613]
[1771339120727,5.9820613,84.68,84.603,6.76651131]
[1771339120930,6.92475343,84.691,84.621,6.76651131]
[1771339121224,17.55925343,84.677,84.607,10.6432]
[1771339121423,165.2626,84.761,84.608,6.76651131]
[1771339121424,6.92475343,84.698,84.608,6.76651131]
[1771339121632,6.92475343,84.698,84.621,6.76651131]
[1771339122630,5.9820613,84.71,84.646,10.6383]
[1771339122828,6.92475343,84.709,84.62,5.9820613]
[1771339123028,6.92475343,84.689,84.6,5.9820613]
[1771339123326,6.92475343,84.669,84.596,6.76651131]
[1771339123728,6.92475343,84.649,84.585,10.646]
[1771339123925,6.92475343,84.649,84.576,6.76651131]
[1771339124525,6.85964517,84.645,84.58,10.6466]
[1771339124729,6.85964517,84.645,84.576,6.76651131]
[1771339125232,6.85964517,84.643,84.579,10.6467]
[1771339125436,6.85964517,84.643,84.515,21.3096]
[1771339125437,6.85964517,84.629,84.556,7.4042269]
[1771339126024,6.85964517,84.609,84.518,7.4042269]
[1771339126224,6.85964517,84.609,84.427,77.4]
[1771339126225,6.85964517,84.549,84.477,7.4042269]
[1771339126434,6.85964517,84.549,84.442,165.8854]
[1771339126435,4.33381191,84.615,84.501,7.4042269]
[1771339126631,4.33381191,84.615,84.442,165.8854]
[1771339126632,4.49666487,84.619,84.541,7.4042269]
[1771339126927,4.49666487,84.615,84.56,5.9820613]
[1771339127128,4.49666487,84.615,84.541,7.4042269]
[1771339127331,4.49666487,84.615,84.483,165.8033]
[1771339127332,4.49666487,84.611,84.535,10.6522]
[1771339127534,4.50641273,84.599,84.519,7.4042269]
[1771339127723,4.50641273,84.589,84.519,7.4042269]
[1771339128127,4.50641273,84.609,84.531,7.4042269]
[1771339128331,4.50641273,84.599,84.531,7.4042269]
[1771339128532,4.50641273,84.599,84.503,90.44]
[1771339128533,5.84515468,84.619,84.549,7.4042269]
[1771339128924,5.84515468,84.64,84.561,7.4042269]
[1771339129128,5.84515468,84.64,84.564,7.4042269]
[1771339130230,5.84515468,84.64,84.566,10.6484]
[1771339130435,5.9820613,84.66,84.581,7.4042269]
[1771339130831,5.56044861,84.639,84.56,13.3862882]
[1771339131234,5.9820613,84.63,84.56,13.3862882]
[1771339131433,5.9820613,84.63,84.56,7.4042269]
[1771339131434,5.56164634,84.629,84.56,7.4042269]
[1771339131928,5.56605775,84.627,84.56,7.4042269]
[1771339132133,5.56605775,84.627,84.54,5.9820613]
[1771339132444,5.56605775,84.627,84.541,7.42593231]
[1771339132636,74.1,84.648,84.541,7.42593231]
[1771339132637,5.9820613,84.61,84.541,7.42593231]
[1771339132940,5.16547238,84.609,84.541,7.42593231]
[1771339133128,5.16547238,84.609,84.484,165.8013]
[1771339133129,5.16547238,84.609,84.435,165.8976]
[1771339133330,5.9820613,84.6,84.521,7.42593231]
[1771339133541,5.1664035,84.609,84.521,7.42593231]
[1771339133838,5.1664035,84.609,84.5,5.9820613]
[1771339133839,5.9820613,84.58,84.491,7.42593231]
[1771339134228,74.1,84.603,84.491,7.42593231]
[1771339134229,5.9820613,84.56,84.491,7.42593231]
[1771339134550,2.71460797,84.499,84.448,7.342e-05]
[1771339134836,165.6583,84.558,84.448,7.342e-05]
[1771339135038,5.9820613,84.52,84.448,7.42600573]
[1771339135232,2.71460797,84.522,84.45,5.9820613]
[1771339135434,2.71460797,84.522,84.448,7.42600573]
[1771339135435,5.9820613,84.52,84.448,7.42600573]
[1771339135641,5.9820613,84.54,84.461,7.42593231]
[1771339135941,2.72542091,84.519,84.448,7.342e-05]
[1771339136142,5.9820613,84.54,84.451,7.42593231]
[1771339136340,2.72542091,84.509,84.448,7.342e-05]
[1771339136541,5.9820613,84.49,84.448,7.342e-05]
[1771339136738,5.9820613,84.51,84.448,7.342e-05]
[1771339137235,1.97603142,84.532,84.451,7.42593231]
[1771339137642,10.6517,84.54,84.451,7.42593231]
[1771339137939,10.6517,84.54,84.45,5.9820613]
[1771339137940,5.9820613,84.57,84.471,7.42593231]
[1771339138241,10.6513,84.543,84.481,7.42593231]
[1771339138430,7.40734894,84.549,84.46,5.9820613]
[1771339138637,10.6549,84.515,84.46,5.9820613]
[1771339138839,7.40734894,84.549,84.46,5.9820613]
[1771339139131,10.42086763,84.727,84.46,5.9820613]
[1771339139132,10.653,84.53,84.46,5.9820613]
[1771339139536,5.9820613,84.55,84.448,7.342e-05]
[1771339139537,5.9820613,84.49,84.448,7.342e-05]
[1771339139837,16.6400613,84.49,84.448,7.342e-05]
[1771339140044,7.40734894,84.489,84.448,7.342e-05]
[1771339140236,10.6613,84.464,84.448,7.342e-05]
[1771339140436,7.40734894,84.469,84.448,7.342e-05]
[1771339140756,10.6622,84.457,84.448,7.342e-05]
[1771339141531,10.6603,84.472,84.448,7.342e-05]
[1771339142036,7.40734894,84.479,84.448,7.342e-05]
[1771339142240,5.9820613,84.46,84.448,7.342e-05]
[1771339142441,7.40734894,84.502,84.448,7.342e-05]
[1771339142740,87.48941024,84.51,84.448,7.342e-05]
[1771339142939,7.40734894,84.509,84.448,7.342e-05]
[1771339143243,10.6568,84.5,84.448,7.342e-05]
[1771339143438,7.40734894,84.528,84.448,7.342e-05]
[1771339143833,10.6551,84.513,84.448,7.342e-05]
[1771339144036,7.40734894,84.528,84.451,7.42593231]
[1771339144436,7.40734894,84.526,84.45,5.9820613]
[1771339144641,10.6566,84.501,84.448,7.342e-05]
[1771339144834,5.9820613,84.5,84.448,7.342e-05]
[1771339145346,10.6587,84.485,84.448,7.342e-05]
[1771339146145,7.40734894,84.497,84.448,7.342e-05]
[1771339146446,10.657,84.498,84.448,7.342e-05]
[1771339147147,10.6588,84.484,84.448,7.342e-05]
[1771339147342,5.9820613,84.5,84.448,7.342e-05]
[1771339148350,5.9820613,84.49,84.448,7.342e-05]
[1771339149144,7.40734894,84.489,84.448,7.342e-05]
[1771339149346,7.40734894,84.487,84.448,7.342e-05]
[1771339149549,10.6597,84.476,84.448,7.342e-05]
[1771339149747,7.40734894,84.487,84.448,7.342e-05]
[1771339150046,10.6631,84.449,84.448,7.342e-05]
[1771339150248,7.40734894,84.487,84.448,7.342e-05]
[1771339150249,5.9820613,84.47,84.448,7.342e-05]
[1771339150544,10.6592,84.481,84.448,7.342e-05]
[1771339150749,5.9820613,84.52,84.45,5.9820613]
[1771339150949,7.40734894,84.526,84.451,7.42593231]
[1771339151351,5.9820613,84.55,84.471,7.42593231]
[1771339151547,7.40734894,84.549,84.471,7.42593231]
[1771339151747,5.9820613,84.53,84.451,7.42593231]
[1771339152244,10.6564,84.503,84.451,7.42593231]
[1771339152450,7.40734894,84.528,84.451,7.42593231]
[1771339153046,10.6548,84.516,84.451,7.42593231]
[1771339154544,10.6533,84.527,84.451,7.42593231]
[1771339155254,7.08805723,84.536,84.453,7.36674981]
[1771339155551,13.07011853,84.56,84.453,7.36674981]
[1771339155743,7.08805723,84.559,84.49,5.9820613]
[1771339155943,7.08805723,84.559,84.491,7.36674981]
[1771339156150,5.9820613,84.58,84.51,13.34881111]
[1771339156360,5.9820613,84.58,84.511,7.36674981]
[1771339157448,10.6474,84.574,84.511,7.36674981]
[1771339157648,74.14,84.592,84.511,7.36674981]
[1771339157854,5.9820613,84.57,84.491,7.36674981]
[1771339158054,10.6508,84.548,84.491,7.36674981]
[1771339158256,7.08805723,84.549,84.468,7.36674981]
[1771339158750,7.08805723,84.549,84.442,89.44]
[1771339158751,5.9820613,84.54,84.469,7.36674981]
[1771339159058,7.08805723,84.539,84.469,7.36674981]
[1771339159352,74.14,84.558,84.477,7.36674981]
[1771339159353,5.9820613,84.54,84.477,7.36674981]
[1771339160150,7.08805723,84.539,84.462,10.6615]
[1771339160347,7.08805723,84.539,84.455,7.36674981]
[1771339160754,10.6519,84.538,84.472,7.36674981]
[1771339161055,5.9820613,84.54,84.472,7.36674981]
[1771339161259,21.2934,84.58,84.486,7.36674981]
[1771339161260,5.9820613,84.56,84.486,7.36674981]
[1771339161447,7.08805723,84.559,84.429,7.36674981]
[1771339161648,5.9820613,84.52,84.431,7.36674981]
[1771339161955,10.6548,84.516,84.431,7.36674981]
[1771339162656,10.6559,84.507,84.431,7.36674981]
[1771339162859,7.08805723,84.519,84.431,7.36674981]